bitfinex/quotes_BTCUSD_20240823
["timestamp","ask_amount","ask_price","bid_price","bid_amount"]
[1724420412455,0.1469,61137.0,61136.0,0.00032414]
[1724420412716,0.1469,61137.0,61136.0,0.01700392]
[1724420412939,0.31208803,61137.0,61136.0,0.00032414]
[1724420413143,1.50160459,61137.0,61136.0,0.01700392]
[1724420413349,1.50160459,61137.0,61131.0,0.0002]
[1724420413350,0.8189,61132.0,61131.0,0.0002]
[1724420413565,1.89032205,61132.0,61131.0,0.0002]
[1724420413986,1.25248211,61132.0,61131.0,0.0002]
[1724420414204,0.94832211,61132.0,61131.0,0.0002]
[1724420414409,0.17325632,61132.0,61131.0,0.0002]
[1724420414780,0.17325632,61132.0,61131.0,0.01793035]
[1724420415131,0.18425632,61132.0,61131.0,0.01893035]
[1724420415339,0.18425632,61132.0,61131.0,0.67326235]
[1724420415536,0.18425632,61132.0,61131.0,0.50967935]
[1724420415875,0.17325632,61132.0,61131.0,0.50867935]
[1724420416075,0.17325632,61132.0,61131.0,0.01693035]
[1724420416274,0.17325632,61132.0,61131.0,0.18051335]
[1724420417341,0.17325632,61132.0,61131.0,0.18551335]
[1724420417548,0.17325632,61132.0,61131.0,0.18651335]
[1724420417549,0.17925632,61132.0,61131.0,0.18651335]
[1724420417755,0.17925632,61132.0,61131.0,0.67168233]
[1724420417756,0.02565632,61132.0,61131.0,0.67168233]
[1724420417964,0.02565632,61132.0,61131.0,0.99884833]
[1724420418087,0.02565632,61132.0,61131.0,0.99984833]
[1724420418958,0.02765632,61132.0,61131.0,0.99984833]
[1724420419163,0.02565632,61132.0,61131.0,0.99984833]
[1724420419563,0.02565632,61132.0,61131.0,0.99884833]
[1724420419798,0.02565632,61132.0,61131.0,1.00384833]
[1724420420332,0.02565632,61132.0,61131.0,0.99884833]
[1724420420738,0.02565632,61132.0,61131.0,1.00784833]
[1724420421166,0.02565632,61132.0,61131.0,1.00884833]
[1724420421371,0.02565632,61132.0,61131.0,1.00784833]
[1724420421774,0.02665632,61132.0,61131.0,1.01384833]
[1724420423014,0.02665632,61132.0,61131.0,1.19524833]
[1724420423237,0.02665632,61132.0,61131.0,1.85258033]
[1724420423441,0.02665632,61132.0,61131.0,1.52541433]
[1724420424025,0.02565632,61132.0,61131.0,1.51041433]
[1724420424175,0.02565632,61132.0,61131.0,1.51741433]
[1724420424375,0.02665632,61132.0,61131.0,1.85458033]
[1724420424580,0.02665632,61132.0,61131.0,2.24414633]
[1724420424799,0.02665632,61132.0,61131.0,2.37881442]
[1724420424800,0.001,61132.0,61131.0,2.37881442]
[1724420425003,0.001,61132.0,61131.0,2.40330154]
[1724420425188,0.001,61132.0,61131.0,2.30535305]
[1724420425389,0.001,61132.0,61131.0,2.40326753]
[1724420425595,0.02564775,61139.0,61138.0,1.227348]
[1724420425797,0.02564775,61139.0,61138.0,1.49135098]
[1724420425995,0.02564775,61139.0,61138.0,1.50824923]
[1724420426207,0.0639,61161.0,61160.0,0.490516]
[1724420426406,0.4675,61167.0,61160.0,0.16400298]
[1724420426407,0.0804,61166.0,61160.0,0.16400298]
[1724420426651,0.0793,61172.0,61171.0,0.490428]
[1724420426863,0.02564187,61179.0,61171.0,0.49095498]
[1724420427065,0.07308711,61187.0,61170.0,0.0765]
[1724420427066,0.0793,61190.0,61177.0,0.16700298]
[1724420427274,0.0793,61196.0,61183.0,0.0765]
[1724420427481,0.0793,61196.0,61184.0,0.16400298]
[1724420427681,0.0793,61196.0,61190.0,0.163423]
[1724420427880,0.24271,61196.0,61191.0,0.16400298]
[1724420428081,0.0793,61196.0,61191.0,0.16400298]
[1724420428395,0.0793,61196.0,61191.0,0.32742298]
[1724420428596,0.0793,61196.0,61193.0,0.163416]
[1724420428805,0.0612,61209.0,61195.0,0.16400298]
[1724420429006,0.0612,61217.0,61208.0,0.326752]
[1724420429205,0.0612,61217.0,61209.0,0.16400298]
[1724420429418,0.0612,61217.0,61211.0,0.163366]
[1724420429617,0.0612,61217.0,61214.0,0.16336]
[1724420429935,0.0612,61217.0,61212.0,0.16400298]
[1724420430277,0.224553,61217.0,61212.0,0.16400298]
[1724420430477,0.0612,61217.0,61212.0,0.16400298]
[1724420430690,0.224555,61217.0,61212.0,0.16400298]
[1724420430895,0.163359,61215.0,61212.0,0.16400298]
[1724420431102,0.00162103,61214.0,61212.0,0.16400298]
[1724420431307,0.163369,61212.0,61210.0,0.0168046]
[1724420431512,0.163369,61212.0,61192.0,0.326836]
[1724420431513,0.00162103,61212.0,61201.0,0.326791]
[1724420431733,0.00162103,61212.0,61202.0,0.32739498]
[1724420431935,0.00162103,61212.0,61202.0,0.16400298]
[1724420432156,0.326743,61211.0,61202.0,0.16400298]
[1724420432398,0.326743,61211.0,61196.0,0.1]
[1724420432399,0.163392,61203.0,61196.0,0.1]
[1724420432561,0.326771,61205.0,61197.0,0.16400298]
[1724420432758,0.163397,61201.0,61198.0,0.1]
[1724420432963,0.16501903,61200.0,61199.0,0.16400298]
[1724420433166,0.326771,61205.0,61189.0,0.00763411]
[1724420433167,0.326782,61203.0,61189.0,0.00763411]
[1724420433367,0.326771,61205.0,61199.0,0.00797887]
[1724420433631,0.0778,61211.0,61191.0,0.1]
[1724420433632,0.326776,61204.0,61191.0,0.1]
[1724420433836,0.163405,61198.0,61197.0,0.001]
[1724420434171,0.163405,61198.0,61197.0,0.00898501]
[1724420434172,0.16502603,61198.0,61197.0,0.00898501]
[1724420434397,0.163405,61198.0,61197.0,0.001]
[1724420434599,0.163405,61198.0,61192.0,0.16400298]
[1724420434799,0.18902985,61198.0,61197.0,0.00798501]
[1724420434995,0.163407,61197.0,61192.0,0.16400298]
[1724420436957,0.163409,61196.0,61192.0,0.16900298]
[1724420437164,0.163409,61196.0,61193.0,0.00799729]
[1724420437290,0.18902985,61198.0,61194.0,0.16400298]
[1724420437508,0.02562485,61198.0,61194.0,0.16400298]
[1724420437734,0.02562485,61198.0,61195.0,0.00799115]
[1724420437939,0.18902985,61198.0,61195.0,0.17199413]
[1724420438465,0.02562485,61198.0,61196.0,0.16400298]
[1724420438995,0.02562485,61198.0,61197.0,0.00798501]
[1724420439408,0.18902885,61198.0,61197.0,0.00798501]
[1724420439613,0.02762485,61198.0,61197.0,0.00798501]
[1724420439818,0.19102885,61198.0,61197.0,0.00798501]
[1724420440035,0.51583685,61198.0,61197.0,0.00798501]
[1724420440304,0.163424,61191.0,61185.0,0.163437]
[1724420440532,0.326833,61194.0,61186.0,0.16400298]
[1724420440533,0.16342,61192.0,61186.0,0.16400298]
[1724420440816,0.163419,61193.0,61187.0,0.163432]
[1724420441051,0.163426,61190.0,61188.0,0.16400298]
[1724420441509,0.326853,61190.0,61185.0,0.005]
[1724420441753,0.35247633,61191.0,61186.0,0.16400298]
[1724420441984,0.163425,61190.0,61186.0,0.16400298]
[1724420442468,0.02562733,61191.0,61186.0,0.16400298]
[1724420442720,0.02562733,61191.0,61185.0,0.168438]
[1724420442721,0.00162103,61190.0,61185.0,0.005]
[1724420442951,0.490308,61186.0,61185.0,0.16900298]
[1724420443183,0.239236,61186.0,61185.0,0.16900298]
[1724420443436,0.0758,61186.0,61185.0,0.16900298]
[1724420443685,0.10142733,61191.0,61185.0,0.16900298]
[1724420443910,0.163434,61187.0,61185.0,0.16500298]
[1724420444325,0.163429,61189.0,61185.0,0.16500298]
[1724420444538,0.326852,61190.0,61185.0,0.16500298]
[1724420444539,0.16343,61188.0,61187.0,0.003]
[1724420444743,0.10142733,61191.0,61185.0,0.16500298]
[1724420444925,0.16343,61189.0,61185.0,0.16500298]
[1724420445124,0.169434,61187.0,61185.0,0.16600298]
[1724420445547,0.006,61187.0,61186.0,0.32743898]
[1724420445691,0.006,61187.0,61186.0,0.16400298]
[1724420445893,0.006,61187.0,61186.0,0.65431098]
[1724420446510,0.02562733,61191.0,61188.0,0.163428]
[1724420446708,0.02562733,61191.0,61189.0,0.49085798]
[1724420446915,0.02562733,61191.0,61190.0,0.163425]
[1724420447127,0.02562733,61191.0,61190.0,0.32742798]
[1724420447333,0.02562733,61191.0,61190.0,0.16400298]
[1724420447554,0.18904933,61191.0,61190.0,0.16400298]
[1724420447966,0.51589433,61191.0,61190.0,0.16400298]
[1724420448159,0.19104933,61191.0,61190.0,0.16400298]
[1724420448580,0.51789433,61191.0,61190.0,0.16400298]
[1724420449470,0.02562733,61191.0,61190.0,0.16400298]
[1724420449809,0.02562733,61191.0,61190.0,0.16600298]
[1724420449959,0.18904933,61191.0,61190.0,0.16600298]
[1724420450167,0.18904933,61191.0,61190.0,0.16400298]
[1724420450366,0.02562733,61191.0,61190.0,0.16400298]
[1724420450572,0.03162733,61191.0,61190.0,0.16327636]
[1724420450730,0.19504933,61191.0,61190.0,0.16327636]
[1724420450936,0.18904933,61191.0,61190.0,0.16227636]
[1724420451130,0.18904933,61191.0,61190.0,0.16327636]
[1724420451131,0.19704933,61191.0,61190.0,0.16327636]
[1724420451584,0.51589433,61191.0,61190.0,0.16227636]
[1724420451754,0.163438,61185.0,61184.0,0.00769794]
[1724420451958,0.163438,61185.0,61175.0,0.46356514]
[1724420451959,0.326893,61182.0,61175.0,0.46356514]
[1724420452130,0.326893,61182.0,61172.0,0.426941]
[1724420452131,0.0614,61184.0,61176.0,0.26400298]
[1724420452335,0.163437,61186.0,61181.0,0.163448]
[1724420452541,0.163437,61186.0,61182.0,0.16400298]
[1724420452542,0.02563168,61183.0,61182.0,0.16400298]
[1724420452951,0.02563168,61183.0,61182.0,0.32744898]
[1724420453177,0.02563168,61183.0,61182.0,0.16400298]
[1724420454222,0.02563168,61183.0,61182.0,0.65434198]
[1724420454777,0.02563168,61183.0,61182.0,0.65734198]
[1724420456017,0.02563168,61183.0,61182.0,0.33819773]
[1724420456193,0.02563168,61183.0,61182.0,0.16400298]
[1724420456373,0.02563168,61183.0,61182.0,0.16500298]
[1724420456574,0.02563168,61183.0,61182.0,0.17000298]
[1724420456983,0.02563168,61183.0,61182.0,0.16500298]
[1724420457298,0.02563168,61183.0,61182.0,0.16600298]
[1724420457502,0.02763168,61183.0,61182.0,0.16600298]
[1724420457941,0.02763168,61183.0,61182.0,0.16400298]
[1724420458317,0.02563168,61183.0,61182.0,0.16400298]
[1724420459584,0.02963168,61183.0,61182.0,0.16400298]
[1724420459817,0.02963168,61183.0,61182.0,0.65434198]
[1724420460107,0.02563168,61183.0,61182.0,0.33044898]
[1724420460610,0.02563168,61183.0,61182.0,0.16700298]
[1724420460814,0.02563168,61183.0,61182.0,0.16400298]
[1724420463483,0.163465,61175.0,61174.0,0.16400298]
[1724420463682,0.163462,61176.0,61174.0,0.16400298]
[1724420463919,0.00162103,61180.0,61174.0,0.16421942]
[1724420464119,0.02563375,61176.0,61174.0,0.32768742]
[1724420464321,0.02563375,61176.0,61174.0,0.33068742]
[1724420464520,0.02563375,61176.0,61175.0,0.163465]
[1724420464722,0.02563375,61176.0,61175.0,0.32746798]
[1724420465124,0.02563375,61176.0,61175.0,0.16400298]
[1724420465888,0.02563375,61176.0,61175.0,0.33552055]
[1724420466625,0.02563375,61176.0,61175.0,0.33752055]
[1724420466827,0.02563375,61176.0,61175.0,0.33552055]
[1724420467433,0.02563375,61176.0,61175.0,0.99238055]
[1724420467635,0.40824,61192.0,61175.0,0.25675555]
[1724420467892,0.40824,61192.0,61176.0,0.16400298]
[1724420468078,0.00162103,61191.0,61176.0,0.16400298]
[1724420468235,0.163437,61186.0,61181.0,0.163447]
[1724420468440,0.32687,61187.0,61182.0,0.16400298]
[1724420468642,0.16505703,61186.0,61182.0,0.17203405]
[1724420468842,0.326861,61188.0,61182.0,0.00803107]
[1724420469084,0.326861,61188.0,61177.0,0.326919]
[1724420469085,0.00162103,61189.0,61178.0,0.163456]
[1724420469298,0.163441,61184.0,61183.0,0.008028]
[1724420469471,0.163441,61184.0,61179.0,0.32745698]
[1724420470036,0.163441,61184.0,61182.0,0.001]
[1724420470295,0.00162103,61183.0,61182.0,0.001]
[1724420470631,0.16344,61185.0,61183.0,0.008028]
[1724420470868,0.007,61184.0,61182.0,0.00803107]
[1724420471113,0.007,61184.0,61183.0,0.16400298]
[1724420471357,0.013,61184.0,61183.0,0.16400298]
[1724420472543,0.0961,61184.0,61182.0,0.001]
[1724420472775,0.259542,61184.0,61182.0,0.001]
[1724420472994,0.163444,61183.0,61182.0,0.001]
[1724420473199,0.16506503,61183.0,61176.0,0.00780577]
[1724420473408,0.163444,61183.0,61178.0,0.163455]
[1724420473617,0.163444,61183.0,61179.0,0.16400298]
[1724420474043,0.163444,61183.0,61182.0,0.001]
[1724420474493,0.163444,61183.0,61179.0,0.16400298]
[1724420474707,0.168444,61183.0,61179.0,0.16400298]
[1724420475128,0.005,61183.0,61179.0,0.16400298]
[1724420475338,0.005,61183.0,61175.0,0.00789832]
[1724420475339,0.163455,61179.0,61175.0,0.00789832]
[1724420475573,0.163457,61178.0,61176.0,0.16400298]
[1724420475785,0.16346,61177.0,61176.0,0.16400298]
[1724420476001,0.163457,61178.0,61176.0,0.16400298]
[1724420476862,0.004,61197.0,61176.0,0.16400298]
[1724420476863,0.083,61194.0,61178.0,0.0611]
[1724420477075,0.083,61194.0,61186.0,0.163433]
[1724420477076,0.16503903,61193.0,61186.0,0.163433]
[1724420477304,0.163424,61191.0,61187.0,0.16400298]
[1724420477517,0.16503803,61193.0,61187.0,0.32743598]
[1724420477760,0.163422,61191.0,61187.0,0.16400298]
[1724420478012,0.02725029,61192.0,61187.0,0.16400298]
[1724420478013,0.16504703,61190.0,61187.0,0.16400298]
[1724420478510,0.00162103,61190.0,61187.0,0.16400298]
[1724420478983,0.00162103,61190.0,61185.0,0.00021643]
[1724420479222,0.16504803,61190.0,61185.0,0.00021643]
[1724420479482,0.163429,61189.0,61185.0,0.00021643]
[1724420479963,0.163429,61189.0,61186.0,0.001]
[1724420480208,0.00162103,61188.0,61185.0,0.00021643]
[1724420480468,0.00162103,61188.0,61185.0,0.00121643]
[1724420480469,0.305536,61186.0,61185.0,0.00121643]
[1724420480696,0.95928,61186.0,61185.0,0.00121643]
[1724420480948,2.23189898,61186.0,61185.0,0.00021643]
[1724420481192,2.23189898,61186.0,61161.0,0.00760015]
[1724420481193,0.6309,61162.0,61161.0,0.00760015]
[1724420481435,2.0624989,61162.0,61161.0,0.00760015]
[1724420481656,2.1854989,61162.0,61161.0,0.00760015]
[1724420481870,2.1854989,61162.0,61141.0,0.163554]
[1724420481871,0.1404,61146.0,61142.0,0.49229154]
[1724420482083,0.00162103,61145.0,61143.0,0.16400298]
[1724420482697,0.0776,61146.0,61143.0,0.32755298]
[1724420482901,0.00162103,61145.0,61143.0,0.16400298]
[1724420483113,0.00162103,61145.0,61132.0,0.32716]
[1724420483114,0.0799,61144.0,61132.0,0.32716]
[1724420483327,0.0799,61144.0,61134.0,0.163573]
[1724420483328,0.163559,61140.0,61134.0,0.163573]
[1724420483538,0.00162103,61139.0,61134.0,0.32757598]
[1724420484163,0.16518403,61139.0,61134.0,0.16400298]
[1724420484574,0.02564929,61138.0,61136.0,0.163568]
[1724420484773,0.02564929,61138.0,61134.0,0.32757598]
[1724420484977,0.02564929,61138.0,61134.0,0.16900298]
[1724420485395,0.02564929,61138.0,61134.0,0.33257698]
[1724420485396,0.00162103,61137.0,61134.0,0.33257698]
[1724420485601,0.02564929,61138.0,61136.0,0.163569]
[1724420486066,0.02564929,61138.0,61137.0,0.163567]
[1724420487537,0.02564929,61138.0,61137.0,0.98783798]
[1724420487983,0.02564929,61138.0,61137.0,1.39977198]
[1724420488637,0.02564929,61138.0,61137.0,1.46547198]
[1724420488880,0.02564929,61138.0,61137.0,1.46647198]
[1724420489110,0.02564929,61138.0,61137.0,1.79760598]
[1724420489340,0.0829,61161.0,61159.0,0.163507]
[1724420489573,0.0829,61161.0,61158.0,0.163509]
[1724420489790,0.10854238,61161.0,61158.0,0.16400298]
[1724420489975,0.10854238,61161.0,61158.0,0.32751198]
[1724420490235,0.10854238,61161.0,61158.0,0.16400298]
[1724420490678,0.12254238,61161.0,61159.0,0.001]
[1724420490918,0.10854238,61161.0,61158.0,0.16400298]
[1724420491135,0.10854238,61161.0,61159.0,0.163508]
[1724420491349,0.03064238,61161.0,61160.0,0.163505]
[1724420491756,0.03064238,61161.0,61160.0,0.65451898]
[1724420492210,0.03064238,61161.0,61160.0,1.06282998]
[1724420492381,0.03064238,61161.0,61160.0,1.38984098]
[1724420492619,0.03043543,61161.0,61160.0,1.38984098]
[1724420493042,0.02543543,61161.0,61160.0,1.38984098]
[1724420493249,0.03043543,61161.0,61160.0,1.06282998]
[1724420493454,0.03043543,61161.0,61160.0,0.65451898]
[1724420493717,0.02543543,61161.0,61160.0,0.65451898]
[1724420493905,0.02543543,61161.0,61160.0,0.65851898]
[1724420494131,0.02543543,61161.0,61160.0,0.66251898]
[1724420494340,0.02543543,61161.0,61160.0,0.98952998]
[1724420494547,0.02543543,61161.0,61160.0,0.99052998]
[1724420495377,0.02543543,61161.0,61160.0,0.98252998]
[1724420495805,0.02543543,61161.0,61160.0,0.17000298]
[1724420496028,0.02543543,61161.0,61160.0,0.006]
[1724420496029,0.32763743,61161.0,61160.0,0.006]
[1724420496231,0.163506,61160.0,61154.0,0.16352]
[1724420496440,0.163506,61160.0,61155.0,0.16400298]
[1724420496441,0.00162103,61159.0,61155.0,0.16400298]
[1724420496644,0.16512903,61159.0,61155.0,0.16400298]
[1724420496851,0.00162103,61159.0,61155.0,0.32752098]
[1724420497061,0.00162103,61159.0,61151.0,0.327056]
[1724420497062,0.163511,61158.0,61151.0,0.327056]
[1724420497286,0.163507,61160.0,61154.0,0.16352]
[1724420497490,0.163507,61160.0,61155.0,0.163518]
[1724420497698,0.163509,61159.0,61155.0,0.003]
[1724420497911,0.49114143,61161.0,61155.0,0.166518]
[1724420498119,0.163507,61160.0,61155.0,0.163518]
[1724420498337,0.163508,61159.0,61154.0,0.163521]
[1724420498963,0.65464643,61161.0,61155.0,0.163518]
[1724420499168,0.163506,61160.0,61155.0,0.163518]
[1724420500042,0.49114143,61161.0,61155.0,0.163518]
[1724420500043,0.02543543,61161.0,61160.0,0.163505]
[1724420500248,0.02543543,61161.0,61160.0,0.65451898]
[1724420500460,0.02543543,61161.0,61160.0,0.66369603]
[1724420500669,0.02543543,61161.0,61160.0,0.33668503]
[1724420501085,0.02543543,61161.0,61160.0,0.66369603]
[1724420501768,0.02543543,61161.0,61160.0,0.99070703]
[1724420502411,0.02543543,61161.0,61160.0,1.31771803]
[1724420502825,0.02543543,61161.0,61160.0,1.38191803]
[1724420503446,0.02543543,61161.0,61160.0,1.38391803]
[1724420503652,0.02543543,61161.0,61160.0,1.38791803]
[1724420504069,0.02543543,61161.0,61160.0,1.39191803]
[1724420504277,0.02543543,61161.0,61160.0,1.38491803]
[1724420504490,0.02543543,61161.0,61160.0,1.39291803]
[1724420505372,0.02543543,61161.0,61160.0,1.00270703]
[1724420505585,0.02543543,61161.0,61160.0,0.67569603]
[1724420505998,0.02543543,61161.0,61160.0,0.34868503]
[1724420506455,0.02543543,61161.0,61160.0,0.67569603]
[1724420506635,0.02543543,61161.0,61160.0,1.00270703]
[1724420508008,0.02543543,61161.0,61160.0,0.67569603]
[1724420509500,0.02543543,61161.0,61160.0,0.18518003]
[1724420509712,0.02543543,61161.0,61160.0,0.34868503]
[1724420510092,0.02543543,61161.0,61160.0,0.67569603]
[1724420511263,0.02543543,61161.0,61160.0,0.18518003]
[1724420511460,0.18893743,61161.0,61160.0,0.02117705]
[1724420511661,0.51594243,61161.0,61160.0,0.02117705]
[1724420512024,0.18893743,61161.0,61160.0,0.02117705]
[1724420512633,0.02543543,61161.0,61160.0,0.02117705]
[1724420513241,0.02543543,61161.0,61160.0,0.18468205]
[1724420515794,0.02543543,61161.0,61160.0,0.51169305]
[1724420515968,0.02543543,61161.0,61160.0,0.83870405]
[1724420518205,0.02543543,61161.0,61160.0,1.32971803]
[1724420519895,0.02543543,61161.0,61160.0,1.41151803]
[1724420520126,0.02543543,61161.0,61160.0,2.20340678]
[1724420520341,0.02543543,61161.0,61160.0,2.20340046]
[1724420520552,0.02543543,61161.0,61160.0,1.87638946]
[1724420520765,0.02543543,61161.0,61160.0,1.8763883]
[1724420520978,0.02543543,61161.0,61160.0,1.88402915]
[1724420521193,0.02543543,61161.0,61160.0,1.84616988]
[1724420521400,0.02543543,61161.0,61160.0,1.84216988]
[1724420521808,0.02543543,61161.0,61160.0,1.83416988]
[1724420522219,0.02543543,61161.0,61160.0,1.84216988]
[1724420522430,0.02543543,61161.0,61160.0,1.83216988]
[1724420522639,0.02543543,61161.0,61160.0,1.83277337]
[1724420523073,0.02543543,61161.0,61160.0,1.84677337]
[1724420523287,0.02543543,61161.0,61160.0,0.69029952]
[1724420523288,0.08813543,61161.0,61160.0,0.69029952]
[1724420523501,0.02543543,61161.0,61160.0,1.00331052]
[1724420523758,0.02543543,61161.0,61160.0,0.02260349]
[1724420523965,0.59544243,61161.0,61160.0,0.03560349]
[1724420524190,0.65964243,61161.0,61160.0,0.02260349]
[1724420524393,0.33263743,61161.0,61160.0,0.014]
[1724420524603,0.33263743,61161.0,61160.0,0.024]
[1724420524815,0.33263743,61161.0,61160.0,0.014]
[1724420525047,0.33263743,61161.0,61160.0,0.00860349]
[1724420525257,0.33663743,61161.0,61160.0,0.015]
[1724420525461,0.33663743,61161.0,61160.0,0.02360349]
[1724420525670,0.33663743,61161.0,61160.0,0.00960349]
[1724420526094,0.17413543,61161.0,61160.0,0.00960349]
[1724420526321,0.17575646,61161.0,61160.0,0.00960349]
[1724420526520,0.17575646,61161.0,61160.0,0.00860349]
[1724420526521,0.17075646,61161.0,61160.0,0.00860349]
[1724420526902,0.18075646,61161.0,61160.0,0.001]
[1724420527134,0.18075646,61161.0,61160.0,0.00960349]
[1724420527334,0.17275646,61161.0,61157.0,0.163512]
[1724420527538,0.17275646,61161.0,61160.0,0.17310849]
[1724420527539,0.02743543,61161.0,61160.0,0.17310849]
[1724420527753,0.03443543,61161.0,61160.0,0.65551898]
[1724420527966,0.03443543,61161.0,61160.0,0.66312247]
[1724420528169,0.03843543,61161.0,61160.0,0.99113347]
[1724420528368,0.03943543,61161.0,61160.0,0.99113347]
[1724420528577,0.03943543,61161.0,61160.0,1.31814447]
[1724420528779,0.03943543,61161.0,61160.0,1.39854447]
[1724420528985,0.03843543,61161.0,61160.0,1.39854447]
[1724420529167,0.03943543,61161.0,61160.0,1.39854447]
[1724420529579,0.02643543,61161.0,61160.0,1.39754447]
[1724420529759,0.02543543,61161.0,61160.0,1.39754447]
[1724420529970,0.03043543,61161.0,61160.0,1.40154447]
[1724420530174,0.02543543,61161.0,61160.0,1.40154447]
[1724420530417,0.02543543,61161.0,61160.0,1.07453347]
[1724420530659,0.02543543,61161.0,61160.0,0.99413347]
[1724420533666,0.02543543,61161.0,61160.0,1.00172037]
[1724420536086,0.02543543,61161.0,61160.0,1.32873137]
[1724420536386,0.02543543,61161.0,61160.0,1.00172037]
[1724420540543,0.33303743,61161.0,61160.0,0.01260349]
[1724420540951,0.33303743,61161.0,61160.0,0.004]
[1724420541168,0.33303743,61161.0,61160.0,0.01260349]
[1724420541368,0.33303743,61161.0,61160.0,0.004]
[1724420541586,0.66004243,61161.0,61160.0,0.004]
[1724420541791,0.16953543,61161.0,61160.0,0.004]
[1724420541996,0.16953543,61161.0,61160.0,0.01260349]
[1724420542351,0.16953543,61161.0,61160.0,0.17610849]
[1724420542822,0.16953543,61161.0,61160.0,0.50311949]
[1724420543021,0.10823543,61161.0,61160.0,0.50311949]
[1724420543224,0.10823543,61161.0,61160.0,0.99413347]
[1724420543225,0.02543543,61161.0,61160.0,0.99413347]
[1724420543428,0.02543543,61161.0,61160.0,1.32114447]
[1724420543839,0.02543543,61161.0,61160.0,0.99413347]
[1724420544857,0.02543543,61161.0,61160.0,1.00205948]
[1724420545066,0.02543543,61161.0,61160.0,1.65608148]
[1724420545281,0.02543543,61161.0,61160.0,1.83518148]
[1724420545500,0.02543543,61161.0,61160.0,2.36641937]
[1724420545710,0.02543543,61161.0,61160.0,2.29488307]
[1724420545918,0.02543543,61161.0,61160.0,2.62186146]
[1724420546129,0.1427,61191.0,61190.0,0.163425]
[1724420546339,0.1427,61191.0,61180.0,0.075]
[1724420546548,0.1427,61191.0,61190.0,0.163425]
[1724420546726,0.1427,61191.0,61190.0,0.490275]
[1724420546961,0.163404,61198.0,61193.0,0.163416]
[1724420547174,0.163409,61196.0,61191.0,0.16342]
[1724420547388,0.163409,61196.0,61194.0,0.00847293]
[1724420547389,0.00162103,61195.0,61194.0,0.00847293]
[1724420547594,0.02725164,61195.0,61191.0,0.16342]
[1724420547799,0.02725164,61195.0,61194.0,0.00847293]
[1724420548003,0.02725164,61195.0,61191.0,0.16342]
[1724420548210,0.02725164,61195.0,61194.0,0.00847293]
[1724420548420,0.02563061,61195.0,61192.0,0.163419]
[1724420548625,0.02563061,61195.0,61194.0,0.00847293]
[1724420549035,0.02563061,61195.0,61191.0,0.001]
[1724420549249,0.00162103,61194.0,61191.0,0.001]
[1724420549667,0.02563061,61195.0,61191.0,0.001]
[1724420549868,0.00162103,61194.0,61191.0,0.001]
[1724420550273,0.243117,61193.0,61192.0,0.00848061]
[1724420550482,0.16342,61192.0,61191.0,0.001]
[1724420550686,0.16504103,61192.0,61191.0,0.001]
[1724420551092,0.00162103,61192.0,61191.0,0.001]
[1724420551295,0.00162103,61192.0,61188.0,0.163428]
[1724420551533,0.0797,61193.0,61192.0,0.001]
[1724420551770,0.03263061,61195.0,61192.0,0.16442]
[1724420552016,0.02563061,61195.0,61192.0,0.16342]
[1724420552253,0.02563061,61195.0,61189.0,0.49085798]
[1724420552254,0.02563061,61195.0,61193.0,0.163416]
[1724420552527,0.02563061,61195.0,61189.0,0.49085798]
[1724420552528,0.02563061,61195.0,61191.0,0.16342]
[1724420552745,0.005,61193.0,61191.0,0.16342]
[1724420552982,0.005,61193.0,61189.0,0.49085798]
[1724420552983,0.005,61193.0,61189.0,0.16400298]
[1724420553219,0.00162103,61192.0,61189.0,0.16400298]
[1724420553666,0.00162103,61192.0,61187.0,0.163431]
[1724420553667,0.16504103,61192.0,61187.0,0.163431]
[1724420553897,0.16504103,61192.0,61187.0,0.32743398]
[1724420554435,0.00162103,61191.0,61187.0,0.32743398]
[1724420554694,0.163429,61189.0,61184.0,0.16344]
[1724420554937,0.00162103,61188.0,61185.0,0.16400298]
[1724420555190,0.16505403,61188.0,61185.0,0.16400298]
[1724420555443,0.0272533,61188.0,61185.0,0.16400298]
[1724420555664,0.1906843,61188.0,61185.0,0.16400298]
[1724420555895,0.0272533,61188.0,61185.0,0.16400298]
[1724420556150,0.0272533,61188.0,61185.0,0.16800298]
[1724420557409,0.81718,61186.0,61185.0,0.004]
[1724420557635,0.89758,61186.0,61185.0,0.004]
[1724420557880,1.224452,61186.0,61185.0,0.004]
[1724420558114,1.224452,61186.0,61167.0,0.0798]
[1724420558115,0.0804,61180.0,61164.0,0.163494]
[1724420558387,0.0636,61181.0,61167.0,0.00777527]
[1724420558388,0.163484,61168.0,61167.0,0.00777527]
[1724420558599,0.163484,61168.0,61164.0,0.16400298]
[1724420558600,0.0804,61170.0,61166.0,0.163488]
[1724420559635,0.163467,61175.0,61170.0,0.163478]
[1724420559808,0.163467,61175.0,61170.0,0.32748098]
[1724420560045,0.00162103,61175.0,61170.0,0.16400298]
[1724420560316,0.163473,61172.0,61170.0,0.16400298]
[1724420560486,0.163487,61167.0,61162.0,0.163499]
[1724420560691,0.163487,61167.0,61163.0,0.16400298]
[1724420560692,0.00162103,61166.0,61163.0,0.16400298]
[1724420561309,0.32860003,61166.0,61156.0,0.327031]
[1724420561511,0.163501,61162.0,61157.0,0.16400298]
[1724420561711,0.163503,61161.0,61157.0,0.16400298]
[1724420561976,0.163503,61161.0,61151.0,0.0634]
[1724420561977,0.00162103,61160.0,61150.0,0.327059]
[1724420562186,0.00162103,61160.0,61151.0,0.16400298]
[1724420562187,0.0766,61159.0,61151.0,0.16400298]
[1724420562397,0.00162103,61158.0,61151.0,0.16400298]
[1724420562614,0.16513203,61158.0,61153.0,0.163523]
[1724420562822,0.16513203,61158.0,61147.0,0.406978]
[1724420562823,0.35428827,61158.0,61147.0,0.406978]
[1724420563060,0.35428827,61158.0,61150.0,0.32753398]
[1724420563061,0.16352,61155.0,61150.0,0.32753398]
[1724420563276,0.00162103,61155.0,61152.0,0.163525]
[1724420563485,0.02564324,61158.0,61151.0,0.327059]
[1724420563486,0.00162103,61156.0,61151.0,0.327059]
[1724420563693,0.00162103,61156.0,61151.0,0.32752998]
[1724420563907,0.00162103,61156.0,61152.0,0.163526]
[1724420564749,0.03064324,61158.0,61154.0,0.163519]
[1724420565102,0.03064324,61158.0,61157.0,0.817567]
[1724420565103,0.02564324,61158.0,61157.0,0.817567]
[1724420565307,0.02564324,61158.0,61157.0,0.98156998]
[1724420566188,0.02864324,61158.0,61157.0,0.98156998]
[1724420566391,0.02864324,61158.0,61157.0,0.65454298]
[1724420566790,0.02564324,61158.0,61157.0,0.65454298]
[1724420568225,0.02564324,61158.0,61157.0,0.65754298]